bitfinex-derivatives/quotes_BTCF0:USTF0_20250810
["timestamp","ask_amount","ask_price","bid_price","bid_amount"]
[1754859431389,1.14951516,118710.0,118700.0,0.13819]
[1754859431690,0.1886894,118690.0,118680.0,1.36651]
[1754859431892,1.1695461,118690.0,118680.0,0.05894]
[1754859432089,0.1720665,118680.0,118670.0,1.0406233]
[1754859432285,0.78883646,118680.0,118670.0,0.13819]
[1754859432588,1.14963646,118680.0,118670.0,0.2224436]
[1754859432788,0.53080248,118680.0,118670.0,0.6255836]
[1754859433001,0.61504898,118680.0,118670.0,0.3142036]
[1754859434084,0.61604898,118680.0,118670.0,0.3172036]
[1754859434288,0.58951618,118680.0,118670.0,0.3192036]
[1754859437196,0.0687575,118680.0,118670.0,0.6800036]
[1754859437397,0.1168675,118680.0,118670.0,0.6800036]
[1754859437895,0.0687575,118680.0,118670.0,0.6800036]
[1754859438306,0.1168675,118680.0,118670.0,0.6800036]
[1754859438603,0.1927775,118680.0,118670.0,0.6800036]
[1754859438802,0.40768968,118680.0,118670.0,0.6800036]
[1754859439004,0.47378968,118680.0,118670.0,0.6800036]
[1754859439194,0.2588775,118680.0,118670.0,0.6800036]
[1754859439798,0.46512968,118680.0,118670.0,0.6305836]
[1754859440008,0.3746036,118680.0,118670.0,0.6800036]
[1754859440395,0.58951578,118680.0,118670.0,0.6800036]
[1754859441301,0.58951578,118680.0,118670.0,0.5882436]
[1754859441601,0.58951578,118680.0,118670.0,0.6305836]
[1754859442405,0.95031578,118680.0,118670.0,0.2697836]
[1754859443100,0.58951578,118680.0,118670.0,0.2697836]
[1754859444696,0.58951578,118680.0,118670.0,0.3192036]
[1754859444900,0.58951578,118680.0,118670.0,0.6800036]
[1754859445203,0.2889336,118680.0,118670.0,0.6800036]
[1754859445505,0.2574536,118680.0,118670.0,0.6800036]
[1754859445709,0.3431236,118680.0,118670.0,0.6800036]
[1754859445908,0.3746036,118680.0,118670.0,0.6800036]
[1754859446208,0.58951578,118680.0,118670.0,0.6800036]
[1754859449208,0.3746036,118680.0,118670.0,0.6800036]
[1754859449408,0.58951578,118680.0,118670.0,0.3192036]
[1754859449804,0.58951578,118680.0,118670.0,0.2697836]
[1754859450004,0.58951578,118680.0,118670.0,1.0469436]
[1754859450512,0.58951578,118680.0,118670.0,1.0046036]
[1754859450805,0.58951578,118680.0,118670.0,0.0892536]
[1754859451011,0.80442796,118680.0,118670.0,0.8663724]
[1754859451203,0.80442796,118680.0,118670.0,0.005]
[1754859451404,1.16522796,118680.0,118670.0,0.005]
[1754859451605,1.16522796,118680.0,118670.0,0.0892524]
[1754859451905,0.95031578,118680.0,118670.0,0.0892524]
[1754859452309,0.97033283,118680.0,118670.0,0.0892524]
[1754859455807,0.97033283,118680.0,118670.0,0.0872524]
[1754859456518,0.96933283,118680.0,118670.0,0.0842524]
[1754859456711,1.18524501,118680.0,118670.0,0.0852524]
[1754859457315,1.96208501,118680.0,118670.0,0.0852524]
[1754859457717,1.74717283,118680.0,118670.0,0.0852524]
[1754859458415,1.74717283,118680.0,118670.0,0.1901124]
[1754859459116,0.97033283,118680.0,118670.0,0.1901124]
[1754859459321,0.1728098,118660.0,118650.0,1.1223328]
[1754859459515,0.54298903,118660.0,118650.0,1.1223328]
[1754859459919,0.54298903,118660.0,118650.0,1.1689228]
[1754859460420,0.54298903,118660.0,118650.0,1.0051528]
[1754859460621,0.54298903,118660.0,118650.0,1.1221728]
[1754859461123,0.54398903,118660.0,118650.0,1.0520728]
[1754859461320,0.54398903,118660.0,118650.0,0.1911264]
[1754859461514,0.90478903,118660.0,118650.0,0.002]
[1754859462521,0.90478903,118660.0,118650.0,0.004]
[1754859463526,0.172824,118640.0,118630.0,0.1157108]
[1754859463726,0.90380323,118640.0,118630.0,0.0842808]
[1754859464029,0.90380323,118640.0,118630.0,0.1293608]
[1754859464330,0.90380323,118640.0,118630.0,0.2286608]
[1754859464835,0.90380323,118640.0,118630.0,0.2612408]
[1754859465222,0.91406069,118640.0,118630.0,0.2612408]
[1754859465633,0.91506069,118640.0,118630.0,0.2632408]
[1754859465935,0.91506069,118640.0,118630.0,0.2642408]
[1754859466125,0.91506069,118640.0,118630.0,0.2247208]
[1754859466327,0.91506069,118640.0,118620.0,1.0759247]
[1754859466328,0.3079882,118620.0,118610.0,0.0842926]
[1754859466536,0.68890525,118620.0,118610.0,0.3078426]
[1754859466833,0.90381743,118620.0,118610.0,0.3078426]
[1754859467234,0.54301743,118620.0,118610.0,0.3078426]
[1754859467633,0.54401743,118620.0,118610.0,0.3108426]
[1754859468633,0.54401743,118620.0,118610.0,0.2642526]
[1754859469732,0.97097864,118620.0,118610.0,0.2642526]
[1754859471336,0.61017864,118620.0,118610.0,0.2642526]
[1754859471535,0.08727826,118620.0,118610.0,0.6716426]
[1754859471731,0.39526616,118620.0,118610.0,0.6716426]
[1754859471931,0.61017834,118620.0,118610.0,0.6716426]
[1754859472126,0.61017834,118620.0,118610.0,0.2642526]
[1754859472329,0.97097834,118620.0,118610.0,0.0872926]
[1754859472632,1.74817834,118620.0,118610.0,0.003]
[1754859472824,1.74809834,118620.0,118610.0,0.003]
[1754859473741,0.172845,118610.0,118600.0,0.28443]
[1754859473932,0.90382423,118610.0,118600.0,0.39738]
[1754859474936,0.90482423,118610.0,118600.0,0.39738]
[1754859476436,0.90482423,118610.0,118600.0,0.40138]
[1754859477226,0.90482423,118610.0,118600.0,0.43396]
[1754859477432,0.90482423,118610.0,118600.0,0.257]
[1754859477636,0.90482423,118610.0,118600.0,0.0041]
[1754859478239,0.90482423,118610.0,118600.0,0.0884021]
[1754859479043,0.90482423,118610.0,118600.0,0.0854021]
[1754859479340,0.90482423,118610.0,118600.0,0.0011]
[1754859481650,1.68238423,118610.0,118600.0,0.06088]
[1754859481947,1.68230423,118610.0,118600.0,0.14548]
[1754859482447,1.68230423,118610.0,118600.0,0.10596]
[1754859482948,1.68230423,118610.0,118600.0,0.0011]
[1754859485341,0.90482423,118610.0,118600.0,0.0011]
[1754859485543,1.68190423,118610.0,118600.0,0.0011]
[1754859486350,1.89681641,118610.0,118600.0,0.0011]
[1754859486547,1.68190423,118610.0,118600.0,0.0011]
[1754859487538,0.90482423,118610.0,118600.0,0.0011]
[1754859487942,1.68190423,118610.0,118600.0,0.0011]
[1754859488443,0.90482423,118610.0,118600.0,0.0011]
[1754859488644,1.68190423,118610.0,118600.0,0.0011]
[1754859489347,1.68190423,118610.0,118580.0,0.2530428]
[1754859489654,0.87752148,118590.0,118580.0,0.0001]
[1754859489844,0.89753853,118590.0,118580.0,0.0001]
[1754859490754,0.89753853,118590.0,118580.0,0.0011]
[1754859490950,0.89763853,118590.0,118580.0,0.0012]
[1754859491450,0.1717536,118570.0,118560.0,0.2646607]
[1754859491653,0.53675283,118570.0,118560.0,0.2646607]
[1754859492346,0.53675283,118570.0,118560.0,0.2646606]
[1754859493154,0.53675283,118570.0,118560.0,0.2656606]
[1754859493359,0.53685283,118570.0,118560.0,0.2657606]
[1754859494058,0.53685283,118570.0,118560.0,0.0854306]
[1754859494253,0.53785283,118570.0,118560.0,0.0854306]
[1754859494453,0.53785283,118570.0,118560.0,0.1337006]
[1754859494654,0.53785283,118570.0,118560.0,0.1935406]
[1754859494854,0.53785283,118570.0,118560.0,0.2336806]
[1754859496364,0.53785283,118570.0,118560.0,0.1935405]
[1754859496661,0.90861495,118570.0,118560.0,0.10921]
[1754859497563,0.90861495,118570.0,118560.0,0.1935406]
[1754859498759,0.90861495,118570.0,118560.0,0.2336806]
[1754859502560,0.90861495,118570.0,118560.0,0.2657606]
[1754859504960,0.90861495,118570.0,118560.0,0.18143]
[1754859506462,0.90861495,118570.0,118560.0,0.2657607]
[1754859507257,0.90861495,118570.0,118560.0,0.18143]
[1754859507564,0.90861495,118570.0,118560.0,0.0011]
[1754859507565,0.69370277,118570.0,118560.0,0.0011]
[1754859507863,0.90861495,118570.0,118560.0,0.0011]
[1754859511062,1.12352713,118570.0,118560.0,0.0011]
[1754859511262,0.3018375,118550.0,118540.0,1.0299138]
[1754859511462,0.53676673,118550.0,118540.0,1.0299138]
[1754859511659,0.53676673,118550.0,118540.0,0.3013038]
[1754859511867,0.53676673,118550.0,118540.0,0.3611438]
[1754859512166,0.53676673,118550.0,118540.0,0.4012838]
[1754859512358,0.53676673,118550.0,118540.0,0.4333638]
[1754859512558,0.53686673,118550.0,118540.0,0.4334638]
[1754859513059,0.60424085,118550.0,118540.0,0.4334638]
[1754859513360,0.38932867,118550.0,118540.0,0.4788038]
[1754859513567,0.60424085,118550.0,118540.0,0.4788038]
[1754859513864,0.60524085,118550.0,118540.0,0.4798038]
[1754859514763,0.60524085,118550.0,118540.0,0.06094]
[1754859514969,0.96604085,118550.0,118540.0,0.0011]
[1754859516970,0.96804085,118550.0,118540.0,0.0001]
[1754859517365,0.2990017,118530.0,118520.0,1.5601193]
[1754859517569,0.2990017,118530.0,118520.0,1.6075293]
[1754859517570,0.51391388,118530.0,118520.0,1.6075293]
[1754859517971,0.53404339,118530.0,118520.0,1.6075293]
[1754859518675,0.53404339,118530.0,118520.0,1.6085293]
[1754859518876,0.53414339,118530.0,118520.0,0.9153493]
[1754859519575,0.53514339,118530.0,118520.0,0.6993293]
[1754859519777,0.53514339,118530.0,118520.0,0.8309915]
[1754859520366,0.53514339,118530.0,118520.0,0.7139815]
[1754859520567,0.53514339,118530.0,118520.0,0.7835815]
[1754859520764,0.53514339,118530.0,118520.0,0.8309915]
[1754859521478,1.67594339,118530.0,118520.0,0.0011]
[1754859524577,1.89285557,118530.0,118520.0,0.0001]
[1754859524880,0.298693,118500.0,118490.0,0.5535332]
[1754859525079,0.51360518,118500.0,118490.0,0.5535332]
[1754859526081,0.51460518,118500.0,118490.0,0.5535332]
[1754859526278,0.51470518,118500.0,118490.0,0.5556332]
[1754859527081,0.52474365,118500.0,118490.0,0.5556332]
[1754859527381,0.88554365,118500.0,118490.0,0.5556332]
[1754859528479,0.88554365,118500.0,118490.0,0.1600503]
[1754859528480,1.66430365,118500.0,118490.0,0.1600503]
[1754859528784,1.68439116,118500.0,118490.0,0.2550903]
[1754859530180,1.68439116,118500.0,118490.0,0.0021]
[1754859530970,0.54583116,118500.0,118490.0,0.1391203]
[1754859531173,0.54583116,118500.0,118490.0,0.3005003]
[1754859531174,0.33091918,118500.0,118490.0,0.3005003]
[1754859531877,0.54583136,118500.0,118490.0,0.3005003]
[1754859532083,0.11170598,118500.0,118490.0,0.6613003]
[1754859532279,0.19607898,118500.0,118490.0,0.6613003]
[1754859532984,0.30112898,118500.0,118490.0,0.6613003]
[1754859533282,0.28104147,118500.0,118490.0,0.6613003]
[1754859535381,0.0021,118500.0,118490.0,0.6613003]
[1754859535583,0.0021,118500.0,118490.0,0.87621248]
[1754859536080,0.0021,118500.0,118490.0,1.04499648]
[1754859540588,0.0021,118500.0,118490.0,0.87621248]
[1754859540784,0.00950754,118520.0,118510.0,0.0843661]
[1754859540993,0.04887,118520.0,118510.0,1.6925998]
[1754859541184,0.06895497,118520.0,118510.0,1.6925998]
[1754859541386,0.60762909,118530.0,118520.0,0.300379]
[1754859541596,0.62771823,118530.0,118520.0,0.300379]
[1754859543186,0.63571823,118530.0,118520.0,0.301379]
[1754859543383,0.63981823,118530.0,118520.0,0.301479]
[1754859549892,1.21553041,118530.0,118520.0,0.0011]
[1754859550197,0.169656,118510.0,118500.0,0.1687395]
[1754859550498,0.53415732,118510.0,118500.0,0.3088895]
[1754859551184,0.53515732,118510.0,118500.0,0.2719995]
[1754859551389,1.67321732,118510.0,118500.0,0.0001]
[1754859551586,0.2991774,118480.0,118470.0,1.6077043]
[1754859551894,0.53417872,118480.0,118470.0,1.6077043]
[1754859552297,0.51408958,118480.0,118470.0,1.6077043]
[1754859552692,0.51508958,118480.0,118470.0,1.6077043]
[1754859552898,0.58105096,118480.0,118470.0,1.6078043]
[1754859553799,0.30188095,118480.0,118470.0,1.6078043]
[1754859554699,0.30188095,118480.0,118470.0,1.6098043]
[1754859554903,0.01946138,118480.0,118470.0,1.99342448]
[1754859555094,0.1329031,118500.0,118490.0,0.1460802]
[1754859555400,0.70443124,118500.0,118490.0,1.4389502]
[1754859556009,0.70443026,118500.0,118490.0,1.4389502]
[1754859556207,0.70453026,118500.0,118490.0,1.4390502]
[1754859556801,0.62015476,118500.0,118490.0,1.4390502]
[1754859557310,0.68601178,118500.0,118490.0,1.4390502]
[1754859557807,0.68701178,118500.0,118490.0,1.4390502]
[1754859558110,0.68801178,118500.0,118490.0,1.4390502]
[1754859559112,0.51926328,118500.0,118490.0,1.4390502]
[1754859559610,0.60363638,118500.0,118490.0,1.4390502]
[1754859563613,0.0880811,118500.0,118490.0,1.4390502]
[1754859564014,0.1724541,118500.0,118490.0,1.4390502]
[1754859564217,0.2209841,118500.0,118490.0,1.4390502]
[1754859565609,0.3062741,118500.0,118490.0,1.4390502]
[1754859565815,0.60363628,118500.0,118490.0,1.4390502]
[1754859566319,0.52118628,118500.0,118490.0,1.4390502]
[1754859566511,0.56589628,118500.0,118490.0,1.4390502]
[1754859569419,0.56590481,118500.0,118490.0,1.4390502]
[1754859570319,0.5457722,118500.0,118490.0,1.4390502]
[1754859570518,0.5835122,118500.0,118490.0,1.4390502]
[1754859571823,0.36860002,118500.0,118490.0,1.4390502]
[1754859572019,0.5835122,118500.0,118490.0,1.4390502]
[1754859572320,0.60364706,118500.0,118490.0,1.4390502]
[1754859572516,0.51927406,118500.0,118490.0,1.4390502]
[1754859572710,0.3313992,118500.0,118490.0,1.4390502]
[1754859577220,0.4088692,118500.0,118490.0,1.4390502]
[1754859577517,0.5464722,118500.0,118490.0,1.4390502]
[1754859577720,0.5840322,118500.0,118490.0,1.4390502]
[1754859578620,0.5198216,118500.0,118490.0,1.4390502]
[1754859578821,0.06795702,118500.0,118490.0,2.01476238]
[1754859580219,0.5867523,118500.0,118490.0,1.3491202]
[1754859580417,0.5867523,118500.0,118490.0,1.3025802]
[1754859580819,0.9475523,118500.0,118490.0,0.0001]
[1754859581025,0.9475523,118500.0,118490.0,0.0844802]
[1754859581331,0.3038974,118480.0,118470.0,0.0843923]
[1754859581631,0.3039045,118470.0,118460.0,0.4214355]
[1754859581832,0.51881668,118470.0,118460.0,0.0843985]
[1754859582029,0.53899363,118470.0,118460.0,0.0843985]
[1754859582226,0.53899363,118470.0,118460.0,0.1094785]
[1754859582427,0.54849892,118470.0,118460.0,0.1896785]
[1754859582725,0.54849892,118470.0,118460.0,0.2527385]
[1754859582925,0.90929892,118470.0,118460.0,0.0844985]
[1754859583626,0.54849892,118470.0,118460.0,0.2992785]
[1754859583817,0.32418145,118470.0,118460.0,0.2992785]
[1754859584324,0.50153353,118470.0,118460.0,0.0854985]
[1754859584523,0.89989353,118470.0,118460.0,0.0854985]
[1754859584820,0.90089353,118470.0,118460.0,0.0854985]
[1754859586028,0.91065316,118470.0,118460.0,0.0854985]
[1754859588125,0.91065316,118470.0,118460.0,0.0011]
[1754859588331,1.68777316,118470.0,118460.0,0.0855016]
[1754859588831,2.04857316,118470.0,118460.0,0.0855016]
[1754859590124,2.04857316,118470.0,118460.0,0.0011]
[1754859590325,2.21739716,118470.0,118460.0,0.0011]
[1754859590527,0.3039181,118450.0,118440.0,0.1688274]
[1754859590722,0.51883028,118450.0,118440.0,0.1688274]
[1754859591836,0.51883028,118450.0,118440.0,0.2362974]
[1754859592026,0.51893028,118450.0,118440.0,0.2741074]
[1754859592432,0.51993028,118450.0,118440.0,0.1719274]
[1754859592832,0.88073028,118450.0,118440.0,0.0875125]
[1754859593631,0.88173028,118450.0,118440.0,0.0875125]
[1754859594133,0.90182494,118450.0,118440.0,0.0875125]
[1754859595541,0.90182494,118450.0,118440.0,0.1549825]
[1754859595932,0.90182494,118450.0,118440.0,0.2233425]
[1754859596338,0.90182494,118450.0,118440.0,0.0875125]
[1754859597644,0.88173028,118450.0,118440.0,0.0875125]
[1754859597831,0.88173028,118450.0,118440.0,0.0031]
[1754859598031,1.65885028,118450.0,118440.0,0.0031]
[1754859598538,1.67884497,118450.0,118440.0,0.0031]
[1754859599045,1.67884497,118450.0,118440.0,0.0011]
[1754859599440,1.46393279,118450.0,118440.0,0.0011]
[1754859599638,1.67884497,118450.0,118440.0,0.0011]
[1754859600333,1.67888497,118450.0,118440.0,0.12695]
[1754859600533,1.67888497,118450.0,118440.0,0.0011]
[1754859600729,0.1708861,118440.0,118430.0,0.0001]
[1754859600937,1.11454002,118440.0,118430.0,0.0001]
[1754859601236,1.21018046,118440.0,118430.0,0.0001]
[1754859601737,1.37905246,118440.0,118430.0,0.0001]
[1754859601938,0.51885258,118420.0,118410.0,0.1688708]
[1754859602143,0.51895258,118420.0,118410.0,0.1688708]
[1754859603246,0.58715038,118420.0,118410.0,0.2112608]
[1754859603446,0.58715038,118420.0,118410.0,0.2740508]
[1754859603741,0.58715038,118420.0,118410.0,0.3047008]
[1754859603936,0.75602408,118420.0,118400.0,0.6985713]
[1754859604132,0.51885958,118410.0,118400.0,0.5060113]
[1754859604334,0.51895958,118410.0,118400.0,0.5060113]
[1754859604532,0.51895958,118410.0,118400.0,0.5525513]
[1754859605539,0.18305,118410.0,118400.0,0.9177213]
[1754859606239,0.0011,118410.0,118400.0,1.13263348]
[1754859606447,0.0011,118410.0,118400.0,0.9177213]
[1754859606448,0.1302067,118410.0,118400.0,0.9177213]
[1754859606746,0.04577,118410.0,118400.0,0.9177213]
[1754859607244,0.04677,118410.0,118400.0,0.9177213]
[1754859608442,0.207956,118410.0,118400.0,0.9177213]
[1754859608744,0.12352,118410.0,118400.0,0.9177213]
[1754859609243,0.207956,118410.0,118400.0,0.9177213]
[1754859609637,0.12352,118410.0,118400.0,0.9177213]
[1754859610348,0.47488838,118410.0,118400.0,0.9173913]
[1754859610646,0.51250838,118410.0,118400.0,0.9173913]
[1754859611648,0.2975962,118410.0,118400.0,0.9173913]
[1754859612445,0.31760092,118410.0,118400.0,0.9163913]
[1754859613545,0.31660092,118410.0,118400.0,0.9163913]
[1754859613844,0.31760092,118410.0,118400.0,0.9163913]
[1754859614040,0.5325131,118410.0,118400.0,0.9163913]
[1754859614843,0.5325131,118410.0,118400.0,0.44889]
[1754859615049,0.8933131,118410.0,118400.0,0.2543535]
[1754859615351,0.8933131,118410.0,118400.0,0.16991]
[1754859615541,0.8933131,118410.0,118400.0,0.2543535]
[1754859616440,0.8933131,118410.0,118400.0,0.002]
[1754859616641,1.6743531,118410.0,118400.0,0.002]
[1754859616951,1.6743531,118410.0,118400.0,0.1111933]
[1754859617152,1.6743531,118410.0,118400.0,0.1546533]
[1754859617345,0.8933131,118410.0,118400.0,0.2232333]
[1754859617642,1.6743131,118410.0,118400.0,0.2543533]
[1754859617953,0.25628092,118410.0,118400.0,1.4429033]
[1754859618338,0.27998092,118410.0,118400.0,1.4429033]
[1754859618642,0.31760092,118410.0,118400.0,1.4429033]
[1754859618838,0.5325131,118410.0,118400.0,1.0821033]
[1754859619040,0.8933131,118410.0,118400.0,0.2533533]
[1754859619239,2.05965728,118410.0,118400.0,0.001]
[1754859619442,1.76543954,118410.0,118400.0,0.0854433]
[1754859619642,1.6763931,118410.0,118400.0,0.0854433]
[1754859619838,1.6763931,118410.0,118400.0,0.001]
[1754859620140,1.6763931,118410.0,118400.0,0.0854428]
[1754859620341,1.6763931,118410.0,118400.0,0.001]
[1754859621450,1.89130528,118410.0,118380.0,0.614171]
[1754859621641,0.51042238,118390.0,118380.0,0.613167]
[1754859621847,0.5305271,118390.0,118380.0,0.613167]
[1754859622146,0.5305271,118390.0,118380.0,0.531347]
[1754859622346,0.5305271,118390.0,118380.0,0.574807]
[1754859622547,0.5305271,118390.0,118380.0,0.613167]
[1754859622751,0.5305271,118390.0,118380.0,0.618167]
[1754859622948,0.5305271,118390.0,118380.0,0.666077]
[1754859623748,0.5305271,118390.0,118380.0,0.618167]
[1754859624247,0.31661492,118390.0,118380.0,0.666077]
[1754859624452,0.23333512,118390.0,118380.0,0.661077]
[1754859624653,0.31761512,118390.0,118380.0,0.664077]
[1754859625050,0.5325273,118390.0,118380.0,0.664077]
[1754859626655,1.6794073,118390.0,118380.0,0.003]
[1754859627658,1.6794073,118390.0,118380.0,0.0874573]
[1754859628359,1.6794073,118390.0,118380.0,0.2222473]
[1754859628554,0.8933273,118390.0,118380.0,0.2533673]
[1754859628855,0.23433492,118390.0,118380.0,0.3012773]
[1754859629058,0.19554472,118390.0,118380.0,1.4484773]
[1754859629361,0.8933271,118390.0,118380.0,0.0854573]
[1754859629657,1.6797671,118390.0,118380.0,0.0854573]
[1754859630157,1.76861233,118390.0,118380.0,0.0854573]
[1754859630652,1.76861233,118390.0,118380.0,0.2222473]
[1754859630863,1.07906346,118390.0,118380.0,0.001]
[1754859632350,0.2955173,118380.0,118370.0,8e-05]
[1754859632549,1.76725943,118380.0,118370.0,8e-05]
[1754859633454,2.07201684,118380.0,118370.0,8e-05]
[1754859633657,1.76825943,118380.0,118370.0,8e-05]
[1754859634453,2.07201684,118380.0,118370.0,8e-05]
[1754859634659,2.07201684,118380.0,118370.0,0.00208]
[1754859634860,2.07301684,118380.0,118370.0,0.00208]
[1754859635464,2.07301684,118380.0,118370.0,0.00108]
[1754859635465,2.07501684,118380.0,118370.0,0.00108]
[1754859635657,1.77125943,118380.0,118370.0,0.00108]
[1754859640565,0.2926487,118350.0,118340.0,0.4183819]
[1754859640769,0.61651083,118350.0,118340.0,0.4183819]
[1754859640960,0.61651083,118350.0,118340.0,0.4658319]
[1754859641761,0.61751083,118350.0,118340.0,0.4658319]
[1754859642270,0.61851083,118350.0,118340.0,0.4688319]
[1754859642965,0.61851083,118350.0,118340.0,0.4213819]
[1754859643167,0.62797289,118350.0,118340.0,0.4688319]
[1754859643367,0.69607581,118350.0,118340.0,0.4688319]
[1754859644771,0.09020764,118350.0,118340.0,0.8296319]
[1754859645369,0.07020292,118350.0,118340.0,1.6023893]
[1754859645771,0.0021,118350.0,118340.0,1.6023893]
[1754859646266,0.0021,118350.0,118340.0,1.29863189]
[1754859646663,0.0021,118350.0,118340.0,1.6023893]
[1754859647267,1e-08,118350.0,118340.0,1.6023893]
[1754859648576,1e-08,118350.0,118340.0,1.29863189]
[1754859648784,0.00010001,118350.0,118340.0,1.29873189]
[1754859650285,0.00010001,118350.0,118340.0,0.99873189]
[1754859650670,0.00010001,118350.0,118340.0,0.8297319]
[1754859650876,0.00010001,118350.0,118340.0,0.99873189]
[1754859651276,0.00010001,118350.0,118340.0,0.8297319]
[1754859651277,0.20827001,118350.0,118340.0,0.8297319]
[1754859651472,0.29274871,118350.0,118340.0,0.8297319]
[1754859651673,0.29274871,118350.0,118340.0,1.6136919]
[1754859651879,0.59650612,118350.0,118340.0,1.5662419]
[1754859652082,0.59650612,118350.0,118340.0,1.4817568]
[1754859652284,0.59650612,118350.0,118340.0,1.1209568]
[1754859652577,0.59650612,118350.0,118340.0,0.9980217]
[1754859652788,0.61653743,118350.0,118340.0,1.0364717]
[1754859656180,0.61653743,118350.0,118340.0,0.0031]
[1754859656181,0.58027743,118350.0,118340.0,0.0031]
[1754859656490,0.2533022,118330.0,118320.0,0.02436]
[1754859656782,0.1688104,118320.0,118310.0,0.3813893]
[1754859656978,0.31204187,118320.0,118310.0,0.3813893]
[1754859657177,0.31204207,118320.0,118310.0,0.3813893]
[1754859657373,0.61579948,118320.0,118310.0,0.3813893]
[1754859657576,0.61579948,118320.0,118310.0,0.3814893]
[1754859657577,0.53139888,118320.0,118310.0,0.3814893]
[1754859657778,0.04679,118320.0,118310.0,0.7422893]
[1754859657980,0.0001,118320.0,118310.0,1.5848493]
[1754859658380,0.0846002,118320.0,118310.0,1.5848493]
[1754859658580,0.2687202,118320.0,118310.0,1.5848493]
[1754859658781,0.2324602,118320.0,118310.0,1.5848493]
[1754859659078,0.1312902,118320.0,118310.0,1.5848493]
[1754859659588,0.0021,118320.0,118310.0,1.88960671]
[1754859659886,0.0031,118320.0,118310.0,1.89060671]
[1754859660280,0.81791429,118360.0,118350.0,0.2494093]
[1754859660281,0.80680488,118360.0,118350.0,0.2494093]
[1754859660481,0.80680488,118360.0,118350.0,0.21238]
[1754859660482,0.8261752,118360.0,118350.0,0.21238]
[1754859660778,1.12993261,118360.0,118350.0,0.16493]
[1754859661385,0.8261752,118360.0,118350.0,0.16493]
[1754859661581,1.13803261,118360.0,118350.0,0.16503]
[1754859661781,0.8342752,118360.0,118350.0,0.16503]
[1754859661983,1.13803261,118360.0,118350.0,0.16503]
[1754859663286,1.15103261,118360.0,118350.0,0.13567]
[1754859663684,1.15103261,118360.0,118350.0,0.16603]
[1754859664082,1.15103261,118360.0,118350.0,0.21348]
[1754859664283,1.15103261,118360.0,118350.0,0.2979592]
[1754859664685,0.1093513,118360.0,118350.0,1.1409592]
[1754859664989,0.1093513,118360.0,118350.0,1.5017592]
[1754859664990,0.08998098,118360.0,118350.0,1.5017592]
[1754859665386,0.08998098,118360.0,118350.0,1.97450061]
[1754859665387,0.0211,118360.0,118350.0,1.97450061]
[1754859666888,0.0211,118360.0,118350.0,1.6707432]
[1754859667978,0.0211,118360.0,118350.0,1.97450061]
[1754859668177,0.0211,118360.0,118350.0,1.6707432]
[1754859668382,0.0211,118360.0,118350.0,1.97450061]
[1754859668790,0.04669,118380.0,118370.0,0.2927556]
[1754859668991,0.11785,118380.0,118370.0,1.4952756]
[1754859669190,0.26883335,118380.0,118370.0,1.4952756]
[1754859669585,0.18437495,118380.0,118370.0,1.4952756]
[1754859670585,0.27883365,118380.0,118370.0,1.4952756]
[1754859670783,1.02988106,118380.0,118370.0,0.0001]
[1754859670981,1.02988106,118380.0,118370.0,0.0011]
[1754859670982,0.66908106,118380.0,118370.0,0.0011]
[1754859671189,1.03888106,118380.0,118370.0,0.0011]
[1754859671682,1.05824136,118380.0,118370.0,0.0011]
[1754859672089,1.05724136,118380.0,118370.0,0.0011]
[1754859672588,1.04924136,118380.0,118370.0,0.0001]
[1754859675791,1.89080136,118380.0,118370.0,0.0001]
[1754859677395,2.2838715,118380.0,118370.0,0.0001]
[1754859677986,1.98011409,118380.0,118370.0,0.0001]
[1754859678480,0.1649101,118350.0,118340.0,1.3706105]
[1754859678685,0.59360751,118350.0,118340.0,1.3654735]
[1754859678891,0.59360751,118350.0,118340.0,1.28099]
[1754859679393,0.61297062,118350.0,118340.0,1.28099]
[1754859679594,0.61297062,118350.0,118340.0,1.0046775]
[1754859679793,0.61307062,118350.0,118340.0,1.0047775]
[1754859679988,0.61407062,118350.0,118340.0,1.0047775]
[1754859680693,0.61407062,118350.0,118340.0,1.0505275]
[1754859680885,0.61407062,118350.0,118340.0,1.0057775]
[1754859680886,0.61707062,118350.0,118340.0,1.0057775]
[1754859681487,0.62207062,118350.0,118340.0,1.0067775]
[1754859681893,0.62207062,118350.0,118340.0,0.9274275]
[1754859682093,0.67911321,118350.0,118340.0,0.0021]
[1754859682294,0.96350751,118350.0,118340.0,0.0021]
[1754859682497,0.6597501,118350.0,118340.0,0.0021]
[1754859682697,0.98286852,118350.0,118340.0,0.0021]
[1754859682897,0.96350751,118350.0,118340.0,0.0021]
[1754859683191,0.98294446,118350.0,118340.0,0.0021]
[1754859683389,0.98494446,118350.0,118340.0,0.0021]
[1754859683589,0.0845018,118320.0,118310.0,1.3264686]
[1754859683790,0.289879,118310.0,118300.0,0.16239]
[1754859683997,0.289879,118310.0,118300.0,0.2926561]
[1754859684592,0.20537,118310.0,118300.0,0.2926561]
[1754859684802,0.20537,118310.0,118300.0,0.2927561]
[1754859684803,0.20547,118310.0,118300.0,0.2927561]
[1754859685298,0.650779,118310.0,118300.0,0.0846161]
[1754859685492,0.289979,118310.0,118300.0,0.2927561]
[1754859685691,0.59373641,118310.0,118300.0,0.2927561]
[1754859685897,0.290979,118310.0,118300.0,0.2977561]
[1754859686603,0.59473641,118310.0,118300.0,0.2977561]
[1754859686903,0.59573641,118310.0,118300.0,0.2987561]
[1754859687100,0.291979,118310.0,118300.0,0.2987561]
[1754859687291,0.20747,118310.0,118300.0,0.2987561]
[1754859687599,0.0021,118310.0,118300.0,0.6595561]
[1754859687795,0.0021,118310.0,118300.0,1.5307961]
[1754859687995,0.07034086,118310.0,118300.0,1.5307961]
[1754859688191,0.0021,118310.0,118300.0,1.5307961]
[1754859688395,0.0021,118310.0,118300.0,1.83455351]
[1754859688903,0.0021,118310.0,118300.0,1.5307961]
[1754859689103,0.0021,118310.0,118300.0,1.83455351]
[1754859689404,0.14168161,118330.0,118320.0,0.2926418]
[1754859689798,0.21284161,118330.0,118320.0,0.2926418]
[1754859689997,0.29923161,118330.0,118320.0,0.2926418]
[1754859690195,0.29923161,118330.0,118310.0,0.6504392]
[1754859690196,0.1416418,118320.0,118310.0,0.6504392]
[1754859690498,0.2898718,118320.0,118310.0,0.7380492]
[1754859690698,0.6506718,118320.0,118310.0,0.2469935]
[1754859690994,0.95442921,118320.0,118310.0,0.20824]
[1754859691193,1.0208866,118320.0,118310.0,0.292749]
[1754859691598,0.71712919,118320.0,118310.0,0.292749]
[1754859691910,0.23575739,118320.0,118310.0,0.292749]
[1754859692206,0.32025919,118320.0,118310.0,0.292749]
[1754859692798,0.32225919,118320.0,118310.0,0.293749]
[1754859693204,0.32425919,118320.0,118310.0,0.294749]
[1754859693402,0.14838739,118320.0,118310.0,0.294749]
[1754859693603,0.23288919,118320.0,118310.0,0.655549]
[1754859694006,0.14538739,118320.0,118310.0,0.656549]